[Event "12th Tamil Nadu Circuit-IM 2024"]
[Site "Chennai"]
[Date "2024.01.12"]
[Round "6.1"]
[White "Md Imran"]
[Black "Raghav V"]
[Result "1-0"]
[ECO "A06"]
[WhiteElo "2222"]
[BlackElo "2150"]
[Annotator "RC"]
[PlyCount "163"]
[EventDate "2024.01.09"]
[EventType "tourn"]
[EventCountry "IND"]
[SourceTitle "playchess.com"]
[Source "ChessBase"]
[SourceQuality "1"]
[TimeControl "5400+30"]

1. b3 {[%emt 0:01:59]} d5 {[%emt 0:01:56]} 2. Bb2 {[%emt 0:00:32]} Nf6 {[%emt 0:00:10]} 3. Nf3 {[%emt 0:00:11]} Bf5 {[%emt 0:00:11]} 4. Nh4 {[%emt 0:01:29]} Bd7 {[%emt 0:02:57]} 5. g3 {[%emt 0:02:14]} c5 {[%emt 0:03:19]} 6. Bxf6 {[%emt 0:07:04]} gxf6 {[%emt 0:05:36]} 7. Bg2 {[%emt 0:00:55]} Bc6 {[%emt 0:01:44]} 8. O-O {[%emt 0:00:28]} e6 {[%emt 0:01:59]} 9. c4 {[%emt 0:00:09]} d4 {[%emt 0:09:13]} 10. e4 {[%emt 0:00:40]} dxe3 {[%emt 0:02:44]} 11. fxe3 {[%emt 0:00:35]} f5 {[%emt 0:02:19]} 12. Nc3 {[%emt 0:01:09]} Bg7 {[%emt 0:01:12]} 13. Qe2 {[%emt 0:00:00]} Bxg2 {[%emt 0:02:50]} 14. Nxg2 {[%emt 0:06:24]} Nc6 {[%emt 0:04:18]} 15. Nf4 {[%emt 0:08:33]} Qg5 {[%emt 0:06:00]} 16. Rad1 {[%emt 0:00:00]} O-O-O {[%emt 0:05:03]} 17. Na4 {[%emt 0:00:00]} h5 {[%emt 0:01:56]} 18. Nxc5 {[%emt 0:00:00]} Qe7 19. d4 {[%emt 0:02:48]} Nxd4 {[%emt 0:06:28]} 20. exd4 {[%emt 0:00:16]} Bxd4+ {[%emt 0:01:04]} 21. Kg2 {[%emt 0:01:45]} Qxc5 {[%emt 0:01:04]} 22. h4 {[%emt 0:02:57]} e5 {[%emt 0:00:28]} 23. Nd5 {[%emt 0:02:12]} f4 {[%emt 0:02:34]} 24. gxf4 {[%emt 0:00:00]} Rhg8+ {[%emt 0:03:19]} 25. Kh3 {[%emt 0:00:00]} Qd6 {[%emt 0:15:44]} 26. Qxh5 {[%emt 0:00:00]} Qd7+ {[%emt 0:03:37]} 27. f5 {[%emt 0:00:00]} Rg7 {[%emt 0:02:54]} 28. Rf3 {[%emt 0:06:07]} Kb8 {[%emt 0:03:17]} 29. Rg3 {[%emt 0:01:41]} Rxg3+ {[%emt 0:00:43]} 30. Kxg3 {[%emt 0:00:02]} Qd6 {[%emt 0:04:11]} 31. Kh3 {[%emt 0:04:53]} Qd7 {[%emt 0:05:59]} 32. Qg4 {[%emt 0:01:15]} Rh8 {[%emt 0:00:58]} 33. f6 {[%emt 0:03:23]} Qd6 {[%emt 0:00:39]} 34. Rf1 {[%emt 0:00:36]} Re8 {[%emt 0:00:30]} 35. Re1 {[%emt 0:01:02]} Qd8 {[%emt 0:00:17]} 36. Re4 {[%emt 0:00:45]} Rg8 {[%emt 0:00:30]} 37. Qf5 {[%emt 0:00:11]} a6 {[%emt 0:00:40]} 38. Rg4 {[%emt 0:00:40]} Re8 {[%emt 0:00:29]} 39. h5 {[%emt 0:00:13]} Qa5 {[%emt 0:00:24]} 40. Qd7 {[%emt 0:02:17]} Rc8 {[%emt 0:00:39]} 41. Ne7 {[%emt 0:00:36]} Rh8 {[%emt 0:00:25]} 42. Qf5 {[%emt 0:13:01]} Qe1 {[%emt 0:00:22]} 43. Rg2 {[%emt 0:07:18]} Qd1 {[%emt 0:00:23]} 44. Rg5 {[%emt 0:03:24]} Qh1+ {[%emt 0:00:22]} 45. Kg3 {[%emt 0:00:10]} Qg1+ {[%emt 0:00:33]} 46. Kh3 {[%emt 0:00:18]} Qh1+ {[%emt 0:00:04]} 47. Kg3 {[%emt 0:00:08]} Bc3 {[%emt 0:00:24]} 48. Qf3 {[%emt 0:02:21]} Qg1+ {[%emt 0:00:40]} 49. Qg2 {[%emt 0:00:10]} Qe3+ {[%emt 0:00:44]} 50. Kh2 {[%emt 0:00:13]} Qf4+ {[%emt 0:01:02]} 51. Qg3 {[%emt 0:01:43]} Bd2 {[%emt 0:00:14]} 52. Rf5 {[%emt 0:00:19]} Qd4 {[%emt 0:00:46]} 53. Nd5 {[%emt 0:00:25]} Ka8 {[%emt 0:00:33]} 54. Rxe5 {[%emt 0:00:37]} Qa1 {[%emt 0:00:31]} 55. Nc7+ {[%emt 0:01:16]} Ka7 {[%emt 0:00:11]} 56. Qf2+ {[%emt 0:00:21]} Kb8 {[%emt 0:00:15]} 57. Nxa6+ {[%emt 0:00:20]} Ka8 {[%emt 0:00:12]} 58. Nc7+ {[%emt 0:00:12]} Kb8 {[%emt 0:00:06]} 59. Na6+ {[%emt 0:05:39]} Ka8 {[%emt 0:00:04]} 60. Rd5 {[%emt 0:01:36]} Bc3 {[%emt 0:00:49]} 61. Nc7+ {[%emt 0:00:07]} Kb8 {[%emt 0:00:13]} 62. Qg3 {[%emt 0:00:34]} Be1 {[%emt 0:00:58]} 63. Qf4 {[%emt 0:00:39]} Qxa2+ {[%emt 0:01:13]} 64. Kh1 {[%emt 0:00:00]} Rc8 {[%emt 0:00:58]} 65. Rd1 {[%emt 0:02:48]} Ba5 {[%emt 0:00:30]} 66. Nd5+ {[%emt 0:00:34]} Ka8 {[%emt 0:00:17]} 67. Qf3 {[%emt 0:01:10]} Rh8 {[%emt 0:00:41]} 68. b4 {[%emt 0:00:54]} Qxc4 {[%emt 0:00:30]} 69. bxa5 {[%emt 0:00:24]} Qh4+ {[%emt 0:00:04]} 70. Kg2 {[%emt 0:00:27]} Rg8+ {[%emt 0:00:44]} 71. Kf1 {[%emt 0:00:04]} Rg3 {[%emt 0:00:23]} 72. Nc7+ {[%emt 0:04:22]} Kb8 {[%emt 0:00:37]} 73. Na6+ {[%emt 0:00:08]} bxa6 {[%emt 0:00:34]} 74. Rb1+ {[%emt 0:00:01]} Kc7 {[%emt 0:00:27]} 75. Rc1+ {[%emt 0:03:03]} Kb8 {[%emt 0:00:34]} 76. Rb1+ {[%emt 0:00:06]} Kc7 {[%emt 0:00:03]} 77. Qb7+ {[%emt 0:00:40]} Kd6 {[%emt 0:00:11]} 78. Rd1+ {[%emt 0:00:21]} Ke5 {[%emt 0:00:59]} 79. Qd5+ {[%emt 0:00:09]} Kf4 {[%emt 0:00:23]} 80. Rd4+ {[%emt 0:00:05]} Ke3 {[%emt 0:00:07]} 81. Qe5+ {[%emt 0:00:04]} Kf3 {[%emt 0:00:06]} 82. Qe2# {[%emt 0:00:02]} 1-0

[Event "12th Tamil Nadu Circuit-IM 2024"]
[Site "Chennai"]
[Date "2024.01.12"]
[Round "6.2"]
[White "Mamombe, Kudzanai"]
[Black "Gochelashvili, David"]
[Result "0-1"]
[ECO "A05"]
[WhiteElo "1797"]
[BlackElo "2287"]
[Annotator "RC"]
[PlyCount "86"]
[EventDate "2024.01.09"]
[EventType "tourn"]
[EventCountry "IND"]
[SourceTitle "playchess.com"]
[Source "ChessBase"]
[SourceQuality "1"]
[TimeControl "5400+30"]

1. Nf3 {[%emt 0:00:12]} Nf6 {[%emt 0:03:17]} 2. g3 {[%emt 0:00:04]} g6 {[%emt 0:00:06]} 3. Bg2 {[%emt 0:00:04]} Bg7 {[%emt 0:00:11]} 4. O-O {[%emt 0:00:09]} O-O {[%emt 0:00:04]} 5. d3 {[%emt 0:00:20]} c5 {[%emt 0:03:31]} 6. e4 {[%emt 0:00:12]} Nc6 {[%emt 0:00:33]} 7. c3 {[%emt 0:00:05]} e5 {[%emt 0:03:03]} 8. Re1 {[%emt 0:01:48]} d6 {[%emt 0:03:09]} 9. Nbd2 {[%emt 0:00:21]} Be6 {[%emt 0:04:26]} 10. Nf1 {[%emt 0:00:27]} h6 {[%emt 0:01:07]} 11. h4 {[%emt 0:02:38]} d5 {[%emt 0:04:49]} 12. Qe2 {[%emt 0:01:47]} d4 {[%emt 0:04:26]} 13. c4 {[%emt 0:00:32]} Rb8 {[%emt 0:02:59]} 14. Bd2 {[%emt 0:01:47]} b5 {[%emt 0:00:47]} 15. cxb5 {[%emt 0:00:11]} Rxb5 {[%emt 0:00:02]} 16. b3 {[%emt 0:00:15]} a5 {[%emt 0:02:35]} 17. Rec1 {[%emt 0:00:24]} Nd7 {[%emt 0:02:39]} 18. N3h2 {[%emt 0:04:46]} a4 {[%emt 0:07:58]} 19. bxa4 {[%emt 0:00:09]} Rb2 {[%emt 0:00:00]} 20. Qd1 {[%emt 0:05:59]} Qb6 {[%emt 0:09:08]} 21. Be1 {[%emt 0:03:14]} Qa6 {[%emt 0:13:12]} 22. Rc2 {[%emt 0:07:32]} Rfb8 {[%emt 0:06:16]} 23. Nd2 {[%emt 0:04:08]} Rxc2 {[%emt 0:03:04]} 24. Qxc2 {[%emt 0:00:58]} Nb4 {[%emt 0:00:02]} 25. Qd1 {[%emt 0:01:18]} Qxd3 {[%emt 0:00:55]} 26. Bf1 {[%emt 0:04:35]} Qc2 {[%emt 0:00:29]} 27. a3 {[%emt 0:00:29]} Qxd1 {[%emt 0:00:06]} 28. Rxd1 {[%emt 0:00:03]} Nc2 {[%emt 0:00:37]} 29. Bb5 {[%emt 0:00:23]} Nxa3 {[%emt 0:01:15]} 30. Bxd7 {[%emt 0:12:08]} Bxd7 {[%emt 0:01:02]} 31. Rc1 {[%emt 0:00:04]} c4 {[%emt 0:00:33]} 32. a5 {[%emt 0:00:32]} c3 {[%emt 0:00:59]} 33. Ndf1 {[%emt 0:00:33]} Rb1 {[%emt 0:05:22]} 34. Rxc3 {[%emt 0:28:33]} dxc3 {[%emt 0:00:24]} 35. Bxc3 {[%emt 0:00:03]} Nb5 {[%emt 0:00:36]} 36. Bd2 {[%emt 0:00:12]} Bh3 {[%emt 0:00:27]} 37. Be3 {[%emt 0:00:29]} Nd4 {[%emt 0:00:37]} 38. f4 {[%emt 0:00:53]} Ra1 {[%emt 0:00:19]} 39. Kf2 {[%emt 0:00:39]} Bxf1 {[%emt 0:00:23]} 40. Nxf1 {[%emt 0:00:01]} Rxa5 {[%emt 0:00:07]} 41. Bxd4 {[%emt 0:00:32]} exd4 {[%emt 0:00:05]} 42. e5 {[%emt 0:00:27]} f6 {[%emt 0:00:17]} 43. exf6 {[%emt 0:02:20]} Bxf6 {[%emt 0:01:02]} 0-1

[Event "12th Tamil Nadu Circuit-IM 2024"]
[Site "Chennai"]
[Date "2024.01.12"]
[Round "6.3"]
[White "Prasannaa.s"]
[Black "Tologon tegin, Semetei"]
[Result "1/2-1/2"]
[ECO "A30"]
[WhiteElo "2213"]
[BlackElo "2384"]
[Annotator "RC"]
[PlyCount "88"]
[EventDate "2024.01.09"]
[EventType "tourn"]
[EventCountry "IND"]
[SourceTitle "playchess.com"]
[Source "ChessBase"]
[SourceQuality "1"]
[TimeControl "5400+30"]

1. b3 {[%emt 0:00:39]} g6 {[%emt 0:01:37]} 2. Bb2 {[%emt 0:00:29]} Nf6 {[%emt 0:00:09]} 3. Nf3 {[%emt 0:00:31]} Bg7 {[%emt 0:00:05]} 4. g3 {[%emt 0:00:04]} b6 {[%emt 0:00:06]} 5. Bg2 {[%emt 0:00:06]} Bb7 {[%emt 0:00:02]} 6. O-O {[%emt 0:00:11]} O-O {[%emt 0:00:31]} 7. c4 {[%emt 0:00:59]} c5 {[%emt 0:00:08]} 8. Nc3 {[%emt 0:08:32]} d5 {[%emt 0:10:22]} 9. Nxd5 {[%emt 0:02:18]} Nxd5 {[%emt 0:00:15]} 10. Bxg7 {[%emt 0:00:09]} Kxg7 {[%emt 0:00:03]} 11. cxd5 {[%emt 0:00:07]} Qxd5 {[%emt 0:07:36]} 12. d4 {[%emt 0:03:24]} Na6 {[%emt 0:00:23]} 13. dxc5 {[%emt 0:06:41]} Nxc5 {[%emt 0:00:23]} 14. Qxd5 {[%emt 0:03:57]} Bxd5 {[%emt 0:00:15]} 15. Rfd1 {[%emt 0:00:08]} Rfd8 {[%emt 0:00:24]} 16. Ne5 {[%emt 0:01:12]} Bxg2 {[%emt 0:00:26]} 17. Kxg2 {[%emt 0:00:08]} Rac8 {[%emt 0:09:51]} 18. Rac1 {[%emt 0:18:30]} Rxd1 {[%emt 0:10:02]} 19. Rxd1 {[%emt 0:00:09]} f6 {[%emt 0:00:07]} 20. Nd3 {[%emt 0:16:27]} Ne4 {[%emt 0:28:45]} 21. f3 {[%emt 0:06:02]} Nd6 {[%emt 0:00:51]} 22. Rc1 {[%emt 0:00:21]} Rxc1 {[%emt 0:00:04]} 23. Nxc1 {[%emt 0:00:04]} e5 {[%emt 0:00:31]} 24. e4 {[%emt 0:02:54]} f5 {[%emt 0:01:21]} 25. exf5 {[%emt 0:00:13]} gxf5 {[%emt 0:00:03]} 26. Ne2 {[%emt 0:00:54]} Kf6 {[%emt 0:00:46]} 27. Nc3 {[%emt 0:00:06]} e4 {[%emt 0:00:39]} 28. fxe4 {[%emt 0:10:56]} fxe4 {[%emt 0:00:04]} 29. Kf2 {[%emt 0:00:26]} Ke5 {[%emt 0:00:05]} 30. Ne2 {[%emt 0:01:28]} b5 {[%emt 0:01:05]} 31. a3 {[%emt 0:02:26]} a5 {[%emt 0:00:23]} 32. g4 {[%emt 0:00:32]} a4 {[%emt 0:00:48]} 33. bxa4 {[%emt 0:00:03]} bxa4 {[%emt 0:00:02]} 34. Nc3 {[%emt 0:00:16]} Kf4 {[%emt 0:00:07]} 35. Nxa4 {[%emt 0:02:30]} Nb5 {[%emt 0:00:04]} 36. h3 {[%emt 0:00:58]} e3+ {[%emt 0:01:16]} 37. Kg2 {[%emt 0:02:27]} Nxa3 {[%emt 0:00:55]} 38. Nc3 {[%emt 0:00:05]} Nc2 {[%emt 0:00:36]} 39. Ne2+ {[%emt 0:02:00]} Ke4 {[%emt 0:00:05]} 40. h4 {[%emt 0:00:54]} Nb4 {[%emt 0:05:43]} 41. g5 {[%emt 0:01:52]} Nd5 {[%emt 0:00:25]} 42. h5 {[%emt 0:01:31]} Kf5 {[%emt 0:02:42]} 43. g6 {[%emt 0:00:40]} hxg6 {[%emt 0:00:10]} 44. hxg6 {[%emt 0:00:03]} Kxg6 {[%emt 0:00:04]} 1/2-1/2

[Event "12th Tamil Nadu Circuit-IM 2024"]
[Site "Chennai"]
[Date "2024.01.12"]
[Round "6.4"]
[White "Mohamed Anees M"]
[Black "Touzane, Olivier"]
[Result "1-0"]
[ECO "C01"]
[WhiteElo "2319"]
[BlackElo "2242"]
[Annotator "RC"]
[PlyCount "55"]
[EventDate "2024.01.09"]
[EventType "tourn"]
[EventCountry "IND"]
[SourceTitle "playchess.com"]
[Source "ChessBase"]
[SourceQuality "1"]
[TimeControl "5400+30"]

1. e4 {[%emt 0:00:04]} e6 {[%emt 0:00:08]} 2. d4 {[%emt 0:00:04]} d5 {[%emt 0:00:05]} 3. Bd3 {[%emt 0:00:37]} dxe4 {[%emt 0:04:06]} 4. Bxe4 {[%emt 0:00:07]} Nf6 {[%emt 0:00:52]} 5. Bf3 {[%emt 0:00:07]} c5 {[%emt 0:00:04]} 6. Ne2 {[%emt 0:00:30]} Nc6 {[%emt 0:00:58]} 7. Be3 {[%emt 0:00:16]} Nd5 {[%emt 0:04:53]} 8. Bxd5 {[%emt 0:00:35]} Qxd5 {[%emt 0:01:03]} 9. Nbc3 {[%emt 0:00:08]} Qc4 {[%emt 0:24:33]} 10. dxc5 {[%emt 0:14:07]} b6 {[%emt 0:31:51]} 11. b3 {[%emt 0:08:02]} Qa6 {[%emt 0:06:42]} 12. cxb6 {[%emt 0:01:51]} Bb7 {[%emt 0:01:51]} 13. O-O {[%emt 0:10:27]} Rd8 {[%emt 0:00:49]} 14. Qe1 {[%emt 0:00:36]} Nb4 {[%emt 0:00:23]} 15. Nd4 {[%emt 0:06:30]} Bc5 {[%emt 0:00:21]} 16. Nxe6 {[%emt 0:00:54]} Bxb6 {[%emt 0:05:05]} 17. Bc5 {[%emt 0:03:43]} Kd7 {[%emt 0:04:32]} 18. Bxb6 {[%emt 0:01:00]} Qxb6 {[%emt 0:00:49]} 19. Rd1+ {[%emt 0:00:15]} Kc8 {[%emt 0:00:37]} 20. Rxd8+ {[%emt 0:00:07]} Rxd8 {[%emt 0:00:07]} 21. Nxd8 {[%emt 0:00:04]} Qxd8 {[%emt 0:00:30]} 22. Nb5 {[%emt 0:01:11]} Nc6 {[%emt 0:01:15]} 23. Qd1 {[%emt 0:00:10]} Ba6 {[%emt 0:02:38]} 24. Qxd8+ {[%emt 0:00:33]} Nxd8 {[%emt 0:00:27]} 25. c4 {[%emt 0:00:39]} Bxb5 {[%emt 0:00:17]} 26. cxb5 {[%emt 0:00:04]} Ne6 {[%emt 0:00:07]} 27. Rd1 {[%emt 0:00:49]} Kc7 {[%emt 0:00:18]} 28. b4 {[%emt 0:00:14]} 1-0

[Event "12th Tamil Nadu Circuit-IM 2024"]
[Site "Chennai"]
[Date "2024.01.12"]
[Round "6.5"]
[White "Pradeep Kumar R A"]
[Black "Buscara, Sevan"]
[Result "0-1"]
[ECO "D11"]
[WhiteElo "2189"]
[BlackElo "2359"]
[Annotator "RC"]
[PlyCount "108"]
[EventDate "2024.01.09"]
[EventType "tourn"]
[EventCountry "IND"]
[SourceTitle "playchess.com"]
[Source "ChessBase"]
[SourceQuality "1"]
[TimeControl "5400+30"]

1. Nf3 {[%emt 0:20:23]} d5 {[%emt 0:00:36]} 2. g3 {[%emt 0:00:06]} Bg4 {[%emt 0:00:50]} 3. Bg2 {[%emt 0:00:37]} Nd7 {[%emt 0:00:07]} 4. d4 {[%emt 0:00:43]} e6 {[%emt 0:01:27]} 5. O-O {[%emt 0:00:40]} Ngf6 {[%emt 0:05:26]} 6. c4 {[%emt 0:02:26]} c6 {[%emt 0:01:34]} 7. b3 {[%emt 0:01:40]} Bd6 {[%emt 0:03:35]} 8. Bb2 {[%emt 0:00:37]} Qb8 {[%emt 0:00:19]} 9. Nc3 {[%emt 0:04:11]} O-O {[%emt 0:01:59]} 10. Nd2 {[%emt 0:01:40]} b5 {[%emt 0:06:01]} 11. cxb5 {[%emt 0:07:33]} cxb5 {[%emt 0:00:21]} 12. Qe1 {[%emt 0:11:07]} Re8 {[%emt 0:07:10]} 13. f4 {[%emt 0:04:00]} b4 {[%emt 0:00:18]} 14. Nd1 {[%emt 0:00:43]} Qb5 {[%emt 0:01:43]} 15. e4 {[%emt 0:28:50]} dxe4 16. Nxe4 Nxe4 17. Bxe4 Rac8 18. Ne3 Bf5 19. Bf3 {[%emt 0:01:21]} Bd3 {[%emt 0:01:12]} 20. Rf2 {[%emt 0:00:44]} Nf6 {[%emt 0:01:31]} 21. Rd2 {[%emt 0:06:41]} Qa6 {[%emt 0:09:22]} 22. Be2 {[%emt 0:19:23]} Bxe2 {[%emt 0:00:13]} 23. Qxe2 {[%emt 0:00:05]} Qb7 {[%emt 0:00:23]} 24. Qg2 {[%emt 0:02:05]} Nd5 {[%emt 0:03:10]} 25. Re1 {[%emt 0:00:09]} Qa6 {[%emt 0:03:07]} 26. Qe2 {[%emt 0:06:59]} Qxa2 {[%emt 0:05:45]} 27. Nxd5 {[%emt 0:02:47]} exd5 {[%emt 0:00:10]} 28. Qxe8+ {[%emt 0:00:13]} Rxe8 {[%emt 0:00:03]} 29. Rxe8+ {[%emt 0:00:07]} Bf8 {[%emt 0:00:02]} 30. Ra8 {[%emt 0:06:47]} g6 {[%emt 0:02:11]} 31. Kf2 {[%emt 0:01:39]} Kg7 {[%emt 0:00:29]} 32. Re2 {[%emt 0:00:13]} h5 {[%emt 0:04:53]} 33. Bc1 {[%emt 0:03:48]} Qxb3 {[%emt 0:01:39]} 34. f5 {[%emt 0:00:17]} gxf5 {[%emt 0:01:12]} 35. Rxa7 {[%emt 0:05:29]} Qc4 {[%emt 0:02:18]} 36. Bb2 {[%emt 0:00:16]} Kg6 {[%emt 0:01:23]} 37. Rb7 {[%emt 0:00:48]} Bg7 {[%emt 0:01:09]} 38. Rb6+ {[%emt 0:00:47]} Kh7 {[%emt 0:00:07]} 39. Rb7 {[%emt 0:00:20]} Bxd4+ {[%emt 0:02:53]} 40. Bxd4 {[%emt 0:00:11]} Qxd4+ {[%emt 0:00:03]} 41. Kg2 {[%emt 0:00:04]} Kg6 {[%emt 0:04:55]} 42. Re8 {[%emt 0:00:05]} f4 {[%emt 0:02:28]} 43. gxf4 {[%emt 0:01:14]} Qxf4 {[%emt 0:00:26]} 44. Rg8+ {[%emt 0:00:05]} Kf6 {[%emt 0:01:33]} 45. Rb6+ {[%emt 0:00:03]} Kf5 {[%emt 0:00:41]} 46. Rgb8 {[%emt 0:01:07]} Qd2+ {[%emt 0:00:18]} 47. Kg1 {[%emt 0:00:27]} h4 {[%emt 0:00:43]} 48. Rxb4 {[%emt 0:01:29]} h3 {[%emt 0:00:16]} 49. Kf1 {[%emt 0:00:14]} Qxh2 {[%emt 0:01:06]} 50. Rh8 {[%emt 0:00:03]} d4 {[%emt 0:02:28]} 51. Rb5+ {[%emt 0:00:09]} Kf4 {[%emt 0:03:37]} 52. Rbh5 Qg2+ 53. Ke1 d3 54. Re8 {[%emt 0:00:50]} d2+ {[%emt 0:00:34]} 0-1

[Event "12th Tamil Nadu Circuit-IM 2024"]
[Site "Chennai"]
[Date "2024.01.13"]
[Round "7.1"]
[White "Tologon tegin, Semetei"]
[Black "Mohamed Anees M"]
[Result "1-0"]
[ECO "A00"]
[WhiteElo "2384"]
[BlackElo "2319"]
[Annotator "RC"]
[PlyCount "97"]
[EventDate "2024.01.09"]
[EventType "tourn"]
[EventCountry "IND"]
[SourceTitle "playchess.com"]
[Source "ChessBase"]
[SourceQuality "1"]
[TimeControl "5400+30"]

1. Nc3 {[%emt 0:01:40]} d5 {[%emt 0:01:54]} 2. e4 {[%emt 0:00:13]} d4 {[%emt 0:00:25]} 3. Nce2 {[%emt 0:00:08]} e5 {[%emt 0:00:59]} 4. Ng3 {[%emt 0:00:15]} Nc6 {[%emt 0:02:46]} 5. Bc4 {[%emt 0:01:49]} g6 {[%emt 0:06:12]} 6. d3 {[%emt 0:01:41]} Bg7 {[%emt 0:04:47]} 7. f4 {[%emt 0:02:15]} exf4 {[%emt 0:03:05]} 8. Bxf4 {[%emt 0:00:19]} Nf6 {[%emt 0:01:22]} 9. h3 {[%emt 0:03:04]} Nd7 {[%emt 0:03:14]} 10. Nf3 {[%emt 0:00:58]} Nde5 {[%emt 0:00:42]} 11. Nxe5 {[%emt 0:01:56]} Nxe5 {[%emt 0:00:22]} 12. Bb3 {[%emt 0:00:05]} Qe7 {[%emt 0:05:54]} 13. Qd2 {[%emt 0:20:00]} Be6 {[%emt 0:13:41]} 14. O-O {[%emt 0:02:25]} h6 {[%emt 0:04:50]} 15. Bxe6 {[%emt 0:38:21]} Qxe6 {[%emt 0:06:06]} 16. c4 {[%emt 0:05:11]} O-O-O {[%emt 0:13:49]} 17. a4 {[%emt 0:00:05]} h5 {[%emt 0:02:33]} 18. a5 {[%emt 0:00:33]} a6 {[%emt 0:01:48]} 19. b4 {[%emt 0:00:09]} Rhf8 {[%emt 0:09:50]} 20. Rae1 {[%emt 0:07:43]} Rd7 {[%emt 0:01:42]} 21. b5 {[%emt 0:01:47]} Re8 {[%emt 0:01:57]} 22. bxa6 {[%emt 0:00:52]} Qxa6 {[%emt 0:00:12]} 23. Rb1 {[%emt 0:00:06]} Nc6 {[%emt 0:05:43]} 24. Rb5 {[%emt 0:00:12]} Na7 {[%emt 0:00:51]} 25. Rb3 {[%emt 0:02:09]} Nc6 {[%emt 0:01:01]} 26. Ra1 {[%emt 0:00:30]} h4 {[%emt 0:01:09]} 27. Nh1 {[%emt 0:00:15]} f5 {[%emt 0:00:21]} 28. Nf2 {[%emt 0:00:03]} Rde7 {[%emt 0:02:52]} 29. Qb2 {[%emt 0:00:04]} Bf6 {[%emt 0:01:17]} 30. Rb5 {[%emt 0:01:11]} Re6 {[%emt 0:00:30]} 31. Qd2 {[%emt 0:03:19]} Na7 {[%emt 0:01:11]} 32. Rc5 {[%emt 0:01:26]} Rc6 {[%emt 0:01:19]} 33. Rd5 {[%emt 0:00:14]} Rce6 {[%emt 0:00:30]} 34. Rb1 {[%emt 0:00:30]} Nc6 {[%emt 0:01:04]} 35. Rdb5 {[%emt 0:04:10]} Nd8 {[%emt 0:00:05]} 36. Bh2 {[%emt 0:01:31]} Qa7 {[%emt 0:00:55]} 37. Qf4 {[%emt 0:00:23]} R8e7 {[%emt 0:01:15]} 38. Qh6 {[%emt 0:01:07]} fxe4 {[%emt 0:00:38]} 39. Nxe4 {[%emt 0:00:03]} Rxe4 {[%emt 0:00:33]} 40. dxe4 {[%emt 0:00:02]} Rxe4 {[%emt 0:00:09]} 41. Qxg6 {[%emt 0:00:20]} Re6 {[%emt 0:00:16]} 42. Kh1 {[%emt 0:00:41]} Qa6 {[%emt 0:00:52]} 43. Qf5 {[%emt 0:00:44]} Kb8 {[%emt 0:00:30]} 44. Rc5 {[%emt 0:00:39]} Rc6 {[%emt 0:00:21]} 45. Rb6 {[%emt 0:00:09]} Rxc5 {[%emt 0:00:31]} 46. Qxc5 {[%emt 0:00:10]} Ne6 {[%emt 0:00:10]} 47. Rxa6 {[%emt 0:00:38]} Nxc5 {[%emt 0:00:09]} 48. Rxf6 {[%emt 0:00:01]} d3 {[%emt 0:00:06]} 49. Bf4 {[%emt 0:00:11]} 1-0

[Event "12th Tamil Nadu Circuit-IM 2024"]
[Site "Chennai"]
[Date "2024.01.13"]
[Round "7.1"]
[White "Buscara, Sevan"]
[Black "Md Imran"]
[Result "*"]
[ECO "A00"]
[WhiteElo "2359"]
[BlackElo "2222"]
[Annotator "RC"]
[PlyCount "24"]
[EventDate "2024.01.09"]
[EventType "tourn"]
[EventCountry "IND"]
[SourceTitle "playchess.com"]
[Source "ChessBase"]
[SourceQuality "1"]
[TimeControl "5400+30"]

1. Nc3 {[%emt 0:01:40]} d5 {[%emt 0:01:54]} 2. e4 {[%emt 0:00:13]} d4 {[%emt 0:00:25]} 3. Nce2 {[%emt 0:00:08]} e5 {[%emt 0:00:59]} 4. Ng3 {[%emt 0:00:15]} Nc6 {[%emt 0:02:46]} 5. Bc4 {[%emt 0:01:49]} g6 {[%emt 0:06:12]} 6. d3 {[%emt 0:01:41]} Bg7 {[%emt 0:04:47]} 7. f4 {[%emt 0:02:15]} exf4 {[%emt 0:03:05]} 8. Bxf4 {[%emt 0:00:19]} Nf6 {[%emt 0:01:22]} 9. h3 {[%emt 0:03:04]} Nd7 {[%emt 0:03:14]} 10. Nf3 {[%emt 0:00:58]} Nde5 {[%emt 0:00:42]} 11. Nxe5 {[%emt 0:01:56]} Nxe5 {[%emt 0:00:22]} 12. Bb3 {[%emt 0:00:05]} Qe7 {[%emt 0:05:54]} *